bitfinex/quotes_ETHUSD_20250508
["timestamp","ask_amount","ask_price","bid_price","bid_amount"]
[1746677359127,5.23601101,1909.9,1909.2,0.05237246]
[1746677359128,6.0435151,1910.0,1909.2,5.23768551]
[1746677359424,5.23690769,1909.6,1909.2,5.23770744]
[1746677359608,5.23653837,1909.7,1909.2,5.23770744]
[1746677359814,5.23653837,1909.7,1909.2,5.23779593]
[1746677360010,5.23667241,1909.7,1909.2,5.23767706]
[1746677360216,5.23683437,1909.6,1909.2,0.05237]
[1746677360415,5.23667241,1909.7,1909.2,5.29014317]
[1746677360725,5.23667241,1909.7,1909.3,5.23745418]
[1746677360896,10.47270371,1909.8,1909.3,5.23735187]
[1746677361097,5.23654052,1909.7,1909.2,1.42916756]
[1746677361342,5.23685696,1909.6,1909.1,9.00148456]
[1746677361829,5.23685696,1909.6,1909.2,5.23765232]
[1746677362043,5.23632505,1909.8,1909.3,5.23734504]
[1746677362196,5.23829625,1909.1,1908.7,0.7636]
[1746677362390,5.23830669,1909.1,1908.7,0.7636]
[1746677362630,5.23790738,1909.2,1908.7,6.00276391]
[1746677362847,5.23807658,1909.1,1908.7,0.7636]
[1746677363178,5.23795425,1909.2,1908.8,0.09965402]
[1746677363464,10.47658207,1909.1,1908.8,0.09965402]
[1746677363668,5.23824182,1909.1,1908.8,0.09965402]
[1746677363959,9.39689769,1909.7,1908.8,0.09965402]
[1746677363960,5.2385168,1909.0,1908.8,0.09965402]
[1746677365065,5.2386191,1908.9,1908.8,0.09965402]
[1746677365364,5.2386191,1908.9,1908.5,0.7636]
[1746677365538,5.2386191,1908.9,1908.8,0.11321679]
[1746677365874,5.23893779,1908.8,1908.3,8.727]
[1746677366025,5.23999161,1908.4,1908.3,8.727]
[1746677366223,5.23987686,1908.5,1908.3,8.727]
[1746677366743,5.23985816,1908.5,1908.3,8.727]
[1746677366943,1.16471131,1909.2,1908.3,8.727]
[1746677367261,5.2394642,1908.6,1908.3,8.727]
[1746677367433,5.23933562,1908.7,1908.3,8.727]
[1746677367754,5.23916876,1908.7,1908.3,15.41618585]
[1746677367935,6.00449927,1909.2,1908.4,5.23987836]
[1746677368130,6.00449927,1909.2,1908.3,15.36383926]
[1746677368131,5.23807029,1909.1,1908.3,15.36383926]
[1746677368355,5.23918759,1908.7,1908.3,10.12373926]
[1746677368562,5.23943181,1908.7,1908.3,10.12373926]
[1746677368763,5.23952432,1908.6,1908.3,8.727]
[1746677369061,5.23810285,1909.1,1908.3,8.727]
[1746677369235,5.23959548,1908.6,1908.3,8.727]
[1746677369426,5.23929442,1908.7,1908.3,8.727]
[1746677369631,5.23929442,1908.7,1908.3,8.77939713]
[1746677369833,5.23901158,1908.8,1908.3,8.77939713]
[1746677370033,5.23901158,1908.8,1908.3,15.42153792]
[1746677370358,5.23904122,1908.8,1908.3,10.12898859]
[1746677370566,5.23813781,1909.1,1908.3,8.727]
[1746677370567,5.23996246,1908.5,1908.3,8.727]
[1746677371261,5.23954522,1908.6,1908.3,8.727]
[1746677371834,5.23999161,1908.4,1908.3,8.727]
[1746677372030,5.23999161,1908.4,1907.8,22.6236]
[1746677372031,0.52399916,1908.4,1907.8,36.59804602]
[1746677372259,5.23971705,1908.5,1907.8,28.3566]
[1746677372564,5.24083408,1908.1,1907.8,19.227075]
[1746677372868,5.23971705,1908.5,1907.8,19.227075]
[1746677373190,5.24114348,1908.0,1907.8,0.7636]
[1746677373370,0.8258,1908.7,1907.9,5.24118545]
[1746677373573,5.24030257,1908.3,1907.9,5.24118545]
[1746677373747,5.24030257,1908.3,1907.8,9.00507693]
[1746677373945,5.24030257,1908.3,1907.9,5.24134341]
[1746677374129,5.24030287,1908.3,1907.9,5.24122352]
[1746677374554,5.24030287,1908.3,1907.8,9.00514744]
[1746677374753,5.24030287,1908.3,1907.9,5.24133015]
[1746677375475,5.24058879,1908.2,1907.8,3.7636]
[1746677375678,5.24043091,1908.3,1907.8,9.00506962]
[1746677376183,1.04805358,1908.3,1907.1,3.38184878]
[1746677376386,5.23944252,1908.6,1907.5,5.24246395]
[1746677376549,5.24027021,1908.3,1907.7,5.24171623]
[1746677376891,5.24027021,1908.3,1907.9,6.00485752]
[1746677377388,5.24016282,1908.4,1907.9,6.00485752]
[1746677377562,5.23959044,1908.6,1908.1,5.24078392]
[1746677377762,5.23959044,1908.6,1908.2,0.05240009]
[1746677377958,10.47928317,1908.6,1908.2,0.05240009]
[1746677378150,5.23975109,1908.5,1908.1,5.24081364]
[1746677378350,5.23975109,1908.5,1908.1,0.52408136]
[1746677378696,5.23961842,1908.6,1908.2,5.24053412]
[1746677378863,10.47931862,1908.6,1908.4,0.36916621]
[1746677379052,5.23971705,1908.5,1908.4,0.36916621]
[1746677380078,6.03581705,1908.5,1908.4,0.36916621]
[1746677380276,7.1633606,1908.5,1908.4,0.36916621]
[1746677381376,7.1633606,1908.5,1908.4,0.70895182]
[1746677381585,7.7133606,1908.5,1908.4,0.70895182]
[1746677382149,7.1633606,1908.5,1908.4,0.70895182]
[1746677382996,0.71633606,1908.4,1907.1,0.7732]
[1746677383161,5.24111021,1908.0,1907.2,0.05242673]
[1746677383361,5.24086104,1908.1,1907.2,5.29549152]
[1746677383559,5.24205884,1907.7,1907.3,0.6535403]
[1746677383864,5.24207524,1907.7,1907.3,0.6535403]
[1746677384071,5.24184497,1907.8,1907.3,5.89645223]
[1746677384305,5.24202329,1907.7,1907.3,5.89645223]
[1746677384593,5.24154303,1907.9,1907.4,5.24256699]
[1746677384800,5.24182189,1907.8,1907.4,1.11389872]
[1746677384999,5.24193401,1907.7,1907.4,1.11389872]
[1746677385160,5.24193401,1907.7,1907.5,0.12399115]
[1746677385356,5.24218913,1907.6,1907.5,0.12399115]
[1746677385580,5.24218913,1907.6,1907.5,0.11573023]
[1746677385785,5.24218913,1907.6,1907.2,5.24315575]
[1746677386058,5.24218913,1907.6,1907.5,0.11573023]
[1746677386289,5.24218913,1907.6,1907.2,5.29557724]
[1746677386463,5.24218913,1907.6,1907.5,0.11573023]
[1746677386665,5.24218913,1907.6,1907.2,5.29557724]
[1746677387175,5.24218913,1907.6,1907.3,0.11672264]
[1746677388358,5.24265502,1907.5,1907.3,0.11672264]
[1746677388558,0.7637,1908.0,1907.3,0.11672264]
[1746677388559,0.38817659,1907.9,1907.3,0.11672264]
[1746677388798,10.48436946,1907.7,1907.3,0.11672264]
[1746677388998,5.24219271,1907.6,1907.3,0.11672264]
[1746677389187,5.24207527,1907.7,1907.3,0.11672264]
[1746677389708,5.24222399,1907.6,1907.3,0.11672264]
[1746677390409,1.80412993,1907.6,1907.3,0.11672264]
[1746677390606,5.2427388,1907.4,1907.3,0.11672264]
[1746677390809,5.2427388,1907.4,1906.9,5.24400654]
[1746677390810,5.2427388,1907.4,1907.0,0.81713531]
[1746677391008,5.2427388,1907.4,1907.3,0.11459018]
[1746677391302,15.1484191,1907.9,1907.0,6.06082607]
[1746677391494,5.24256485,1907.5,1907.1,5.84943638]
[1746677391691,5.24256485,1907.5,1907.2,0.05242702]
[1746677391898,5.24238762,1907.6,1907.2,0.05242702]
[1746677392283,5.24261867,1907.5,1907.3,0.11459018]
[1746677392504,10.48532317,1907.5,1907.3,0.11459018]
[1746677392803,5.24261867,1907.5,1907.4,0.11459018]
[1746677393005,5.24261867,1907.5,1907.0,6.0084405]
[1746677393215,5.24261867,1907.5,1907.1,0.60084405]
[1746677393391,5.19071964,1907.5,1907.1,0.60084405]
[1746677393594,5.24177224,1907.8,1907.5,0.8177]
[1746677393595,5.24163958,1907.8,1907.5,0.8177]
[1746677393785,5.24195219,1907.7,1907.5,0.8177]
[1746677393986,5.24177653,1907.8,1907.6,0.11459018]
[1746677394508,5.24191434,1907.7,1907.6,0.11459018]
[1746677394709,5.24191434,1907.7,1907.3,5.24287456]
[1746677394895,5.24191434,1907.7,1907.4,0.52428746]
[1746677395096,5.24191434,1907.7,1907.4,0.63887764]
[1746677395813,5.24191434,1907.7,1907.4,0.61409464]
[1746677396013,5.24180596,1907.8,1907.4,0.6665145]
[1746677396211,5.24193048,1907.7,1907.4,0.16701004]
[1746677396518,5.24193048,1907.7,1907.4,0.11459018]
[1746677396687,5.24193048,1907.7,1907.3,5.24299686]
[1746677397316,5.24241384,1907.6,1907.4,0.11459018]
[1746677397608,5.24241384,1907.6,1907.1,6.64952167]
[1746677397816,5.24247322,1907.5,1907.1,6.64952167]
[1746677397973,5.24229949,1907.6,1907.2,0.05242674]
[1746677398178,5.242042,1907.7,1907.3,5.24295711]
[1746677398379,5.242042,1907.7,1907.4,0.05242067]
[1746677398574,5.242042,1907.7,1907.3,5.24295711]
[1746677399414,5.24176834,1907.8,1907.4,0.05242069]
[1746677399614,5.24091721,1908.1,1907.7,5.24190008]
[1746677399800,10.4819899,1908.1,1907.8,0.05241079]
[1746677400113,5.24091721,1908.1,1907.8,0.05241079]
[1746677400318,5.24085591,1908.1,1907.8,0.05241079]
[1746677400690,5.24085591,1908.1,1907.7,5.24182496]
[1746677400987,6.78916179,1908.4,1907.6,5.24203627]
[1746677401193,5.24106817,1908.1,1907.6,7.23312815]
[1746677401401,5.24106817,1908.1,1907.7,0.46759964]
[1746677401716,5.24071077,1908.2,1907.8,0.05240996]
[1746677401899,5.24071077,1908.2,1907.8,5.29395202]
[1746677402103,5.24071077,1908.2,1907.7,5.24168777]
[1746677402104,5.24172835,1907.8,1907.5,0.7775]
[1746677402288,5.24135213,1908.0,1907.5,6.01980335]
[1746677402489,5.24148486,1907.9,1907.5,6.01980335]
[1746677402721,0.8328,1908.4,1907.4,0.46796423]
[1746677402722,5.76527223,1908.0,1907.4,0.46796423]
[1746677402921,5.2425106,1907.5,1907.3,9.4522]
[1746677403084,5.2427388,1907.4,1907.2,8.648]
[1746677403422,5.24258225,1907.5,1907.1,9.4142]
[1746677403617,5.24258225,1907.5,1907.1,14.65770054]
[1746677404298,0.7752,1907.9,1907.1,14.65770054]
[1746677404299,5.24149409,1907.9,1907.4,0.7662]
[1746677404497,5.24119737,1908.0,1907.5,5.24242714]
[1746677405022,5.24119737,1908.0,1907.4,6.47683006]
[1746677405023,5.2420451,1907.7,1907.4,0.7662]
[1746677405222,5.24160116,1907.9,1907.4,6.00882075]
[1746677405414,5.24164069,1907.8,1907.5,0.05241787]
[1746677405610,5.24151661,1907.9,1907.5,0.52057472]
[1746677406141,0.8006,1908.2,1907.5,0.98912577]
[1746677406293,5.24154076,1907.9,1907.5,0.9891239]
[1746677406494,5.24154076,1907.9,1907.5,0.9367079]
[1746677406697,5.24154076,1907.9,1907.5,6.17909588]
[1746677407037,5.24066945,1908.2,1907.7,5.24167278]
[1746677407335,5.24030899,1908.3,1907.6,0.7993]
[1746677407336,5.24124481,1908.0,1907.6,0.7993]
[1746677407505,5.24165143,1907.8,1907.6,0.7993]
[1746677407695,5.24054082,1908.2,1907.6,0.7993]
[1746677407895,5.24179075,1907.8,1907.6,0.7993]
[1746677408197,5.24178144,1907.8,1907.5,8.648]
[1746677408409,6.57766955,1908.1,1907.5,8.648]
[1746677408410,5.24099566,1908.1,1907.6,5.24200433]
[1746677408620,6.0531531,1908.3,1907.8,0.7993]
[1746677408931,5.24133456,1908.0,1907.5,14.68961823]
[1746677409098,5.24133456,1908.0,1907.5,16.68284061]
[1746677409294,5.24151342,1907.9,1907.6,0.93816123]
[1746677409526,5.24065722,1908.2,1907.7,5.29410178]
[1746677409830,5.24084522,1908.1,1907.7,5.29416551]
[1746677410215,5.24113517,1908.0,1907.6,0.46907634]
[1746677410406,1.04815024,1908.1,1907.6,0.46907634]
[1746677410607,5.24191434,1907.7,1907.6,0.93820944]
[1746677410908,5.2418031,1907.8,1907.6,0.93820944]
[1746677411500,5.2418031,1907.8,1907.6,0.46907634]
[1746677411722,0.7886,1908.2,1907.6,5.2420229]
[1746677412033,5.24125937,1908.0,1907.6,5.29444081]
[1746677412332,5.24125937,1908.0,1907.6,5.29459706]
[1746677412521,5.24097256,1908.1,1907.6,2.05083687]
[1746677412715,5.24097256,1908.1,1907.6,5.29444248]
[1746677413037,5.24112623,1908.0,1907.6,0.46896771]
[1746677413246,5.24097197,1908.1,1907.6,5.7111547]
[1746677413452,5.2407442,1908.2,1907.7,5.24174779]
[1746677413742,8.63387,1908.8,1907.6,0.52137876]
[1746677413743,5.240174,1908.4,1908.0,5.24106699]
[1746677414105,5.24029608,1908.3,1907.9,5.24116879]
[1746677414405,5.24029608,1908.3,1908.0,0.46896771]
[1746677414406,5.24040552,1908.3,1908.0,0.46896771]
[1746677414819,5.24054865,1908.2,1908.0,0.46896771]
[1746677415018,5.24054865,1908.2,1907.8,6.01074108]
[1746677415019,5.24054865,1908.2,1907.9,0.46896771]
[1746677415439,5.24054865,1908.2,1907.8,14.65877372]
[1746677415952,5.24122001,1908.0,1907.8,0.7692]
[1746677416106,5.24097449,1908.1,1907.7,5.2419078]
[1746677416305,5.24070006,1908.2,1907.7,5.2419078]
[1746677417042,5.24054082,1908.2,1907.6,13.89018321]
[1746677417245,0.52405408,1908.1,1907.6,13.89002681]
[1746677417450,5.24054082,1908.2,1907.7,5.24189891]
[1746677417807,5.2408342,1908.1,1907.7,5.24189891]
[1746677418444,5.242022,1907.7,1907.5,0.759]
[1746677418647,5.24195449,1907.7,1907.4,9.11669602]
[1746677418846,5.24225199,1907.6,1907.4,0.46869602]
[1746677419150,5.24246395,1907.5,1907.4,0.46869602]
[1746677419347,5.24356352,1907.1,1907.0,0.46869602]
[1746677419773,5.24356352,1907.1,1907.0,0.46714702]
[1746677419929,5.24304895,1907.3,1906.7,0.4318125]
[1746677419930,5.24416264,1906.9,1906.7,0.4318125]
[1746677420262,5.24400369,1907.0,1906.7,0.4318125]
[1746677420457,0.7767,1907.2,1906.7,5.67635947]
[1746677420658,5.24373674,1907.1,1906.7,1.52917192]
[1746677420861,5.24405373,1907.0,1906.7,0.4318125]
[1746677421058,0.7767,1907.2,1906.7,0.4318125]
[1746677421059,5.24436682,1906.9,1906.7,0.4318125]
[1746677421245,5.2443885,1906.8,1906.7,0.4318125]
[1746677422068,5.24429588,1906.9,1906.7,0.4318125]
[1746677422232,5.2443885,1906.8,1906.7,0.4318125]
[1746677424763,7.08474451,1906.8,1906.7,0.4318125]
[1746677426467,7.63474451,1906.8,1906.7,0.4318125]
[1746677426771,16.18774451,1906.8,1906.7,0.4318125]
[1746677428197,5.24685525,1906.0,1905.6,0.793]
[1746677428375,5.24685525,1906.0,1905.7,0.1081747]
[1746677428686,5.24693347,1905.9,1905.6,0.793]
[1746677428848,5.24693347,1905.9,1905.8,0.1081747]
[1746677429046,5.24693347,1905.9,1905.6,0.793]
[1746677429251,5.24693347,1905.9,1905.8,0.1081747]
[1746677429501,5.24720251,1905.8,1905.3,0.8233]
[1746677429653,5.2477041,1905.6,1905.3,0.8233]
[1746677429852,0.7942,1905.7,1905.0,0.8174]
[1746677430088,5.24778604,1905.6,1905.0,6.06653171]
[1746677430468,6.04173771,1905.7,1905.1,5.24894081]
[1746677430666,0.7942,1905.7,1905.2,5.24868124]
[1746677430993,5.24768246,1905.7,1905.2,5.77353372]
[1746677431195,0.7942,1905.9,1905.0,0.8174]
[1746677431196,5.24807515,1905.5,1905.0,0.8174]
[1746677431395,5.24869615,1905.3,1904.8,6.50604103]
[1746677431611,6.03712016,1905.6,1904.8,1.2563125]
[1746677431754,5.24910786,1905.1,1904.8,0.4318125]
[1746677431955,6.04847077,1905.1,1904.8,0.4318125]
[1746677432155,5.24827094,1905.4,1904.8,0.4318125]
[1746677432156,5.24839485,1905.4,1905.0,5.24921235]
[1746677432384,5.24839485,1905.4,1905.0,5.24933059]
[1746677432560,5.24791048,1905.6,1905.1,5.30155031]
[1746677432888,5.24787632,1905.6,1905.1,5.30130444]
[1746677433076,5.24787632,1905.6,1905.1,5.24882175]
[1746677433276,5.24863791,1905.3,1904.9,17.57816569]
[1746677433480,5.24863791,1905.3,1904.9,9.02216569]
[1746677433704,5.24906781,1905.2,1904.8,3.4318125]
[1746677433860,5.24910076,1905.1,1904.8,0.4318125]
[1746677435305,5.24891273,1905.2,1904.8,0.4318125]
[1746677435508,5.24839266,1905.4,1904.9,5.24950392]
[1746677435713,5.24839266,1905.4,1905.0,0.05248519]
[1746677435910,5.24839266,1905.4,1904.8,6.32775216]
[1746677436081,5.24853047,1905.3,1904.8,6.32775216]
[1746677436398,5.24923967,1905.1,1904.8,0.4318125]
[1746677436592,5.24944843,1905.0,1904.8,0.4318125]
[1746677436802,5.24924112,1905.1,1904.8,0.4318125]
[1746677436982,10.49794436,1905.2,1904.8,0.4318125]
[1746677437187,5.24908204,1905.1,1904.8,0.4318125]
[1746677437385,5.24829494,1905.4,1904.8,0.4318125]
[1746677437592,5.24937364,1905.0,1904.8,0.4318125]
[1746677438068,5.2496194,1904.9,1904.8,0.4318125]
[1746677438702,5.2492581,1905.1,1904.8,0.4318125]
[1746677439476,6.07834338,1905.4,1904.8,0.4318125]
[1746677439662,5.24918496,1905.1,1904.8,0.4318125]
[1746677439868,5.24937271,1905.0,1904.8,0.4318125]
[1746677440613,5.24856315,1905.3,1904.8,0.4318125]
[1746677440796,0.52485631,1905.2,1904.9,0.34252232]
[1746677441080,5.24957958,1905.0,1904.9,0.34252232]
[1746677441473,5.24906829,1905.1,1904.9,0.34252232]
[1746677441896,6.06074383,1905.0,1904.9,0.34252232]
[1746677442167,5.2496194,1904.9,1904.8,0.4318125]
[1746677442371,6.43565572,1904.9,1904.8,0.4318125]
[1746677442598,5.24951529,1905.0,1904.8,0.74990249]
[1746677442800,5.2496194,1904.9,1904.8,0.74990249]
[1746677442967,5.2493605,1905.0,1904.8,0.74990249]
[1746677443515,6.0167194,1904.9,1904.8,0.74990249]
[1746677443682,5.2496194,1904.9,1904.8,0.74990249]
[1746677443870,5.2496194,1904.9,1904.8,0.4318125]
[1746677444297,5.2495099,1905.0,1904.8,0.75157526]
[1746677444497,5.24937635,1905.0,1904.8,0.75157526]
[1746677445492,5.2496194,1904.9,1904.8,0.75157526]
[1746677445907,6.05454056,1905.3,1904.8,0.4318125]
[1746677446074,5.24942634,1905.0,1904.8,0.4318125]
[1746677446415,5.2496194,1904.9,1904.8,0.4318125]
[1746677446613,6.0531194,1904.9,1904.8,0.4318125]
[1746677446816,7.2218933,1904.9,1904.8,0.4318125]
[1746677447286,10.7718933,1904.9,1904.8,0.4318125]
[1746677447789,10.2218933,1904.9,1904.8,0.4318125]
[1746677448183,3.8276,1904.8,1903.7,5.25271959]
[1746677448382,5.25048966,1904.6,1904.1,5.25168717]
[1746677448701,5.25062529,1904.6,1904.2,5.30399183]
[1746677449067,5.25062529,1904.6,1902.9,0.4318125]
[1746677449068,5.25486074,1903.0,1902.9,0.4318125]
[1746677449587,5.8573731,1903.0,1902.9,0.4318125]
[1746677450433,10.04967607,1903.0,1902.9,0.4318125]
[1746677451329,16.35237607,1903.0,1902.9,0.4318125]
[1746677451520,16.35237607,1903.0,1902.9,0.37930014]
[1746677451521,10.78786371,1903.0,1902.9,0.37930014]
[1746677451718,6.59556074,1903.0,1902.9,0.37930014]
[1746677451910,5.80486074,1903.0,1902.9,0.37930014]
[1746677452103,0.55,1903.0,1902.9,0.37930014]
[1746677452303,5.2545401,1903.2,1902.9,0.37930014]
[1746677452304,5.25444045,1903.2,1902.9,0.72303359]
[1746677452539,0.7762,1903.3,1902.9,0.72303359]
[1746677452828,5.80486074,1903.0,1902.9,0.37930014]
[1746677452992,6.91081248,1903.0,1902.9,0.37930014]
[1746677453632,5.25486074,1903.0,1902.9,0.37930014]
[1746677453806,5.2547359,1903.1,1902.9,0.37930014]
[1746677454135,0.754,1903.6,1903.0,0.34373345]
[1746677454496,5.25348382,1903.5,1903.0,5.59844722]
[1746677454724,5.25348382,1903.5,1903.0,6.19622196]
[1746677454922,6.00738499,1903.6,1903.0,6.19622196]
[1746677454923,6.0073618,1903.6,1903.1,5.25453453]
[1746677455121,5.25365213,1903.5,1903.0,6.19621568]
[1746677455318,5.2533618,1903.6,1903.1,5.25445663]
[1746677455633,5.25362306,1903.5,1903.1,0.34373345]
[1746677455794,5.25344308,1903.6,1903.1,5.59831516]
[1746677456325,5.25247082,1903.9,1903.4,5.25355037]
[1746677456523,5.25207067,1904.1,1903.5,5.30578471]
[1746677456701,0.8232,1904.2,1903.6,5.25319593]
[1746677456898,5.2529285,1903.7,1903.6,0.34281958]
[1746677457124,5.77822135,1903.7,1903.6,0.34281958]
[1746677457313,5.2535858,1903.5,1903.0,6.04903649]
[1746677457508,0.52529285,1903.7,1903.1,5.25453122]
[1746677457509,5.25332525,1903.6,1903.1,5.25453122]
[1746677457715,5.25331718,1903.6,1903.1,5.57697293]
[1746677458231,10.50677365,1903.6,1903.1,5.57697293]
[1746677458434,5.25361276,1903.5,1903.1,0.32257772]
[1746677458646,5.25210922,1904.0,1903.1,0.32257772]
[1746677458850,5.25231951,1904.0,1903.5,0.7794]
[1746677459012,5.25257004,1903.9,1903.5,0.7794]
[1746677459194,6.07476792,1904.2,1903.5,0.7794]
[1746677459195,5.25270276,1903.8,1903.6,0.32250168]
[1746677459401,5.25184016,1904.1,1903.6,0.32250168]
[1746677459599,5.2529285,1903.7,1903.6,0.32250168]
[1746677459814,5.25332882,1903.6,1903.1,0.7985]
[1746677460039,5.2529285,1903.7,1903.2,5.57539882]
[1746677460213,5.25320941,1903.6,1903.2,5.57539882]
[1746677460612,5.25307115,1903.7,1903.2,5.57539882]
[1746677460802,5.25334565,1903.6,1903.2,5.57552877]
[1746677461007,10.5062541,1903.7,1903.2,5.57552877]
[1746677461235,5.25268868,1903.8,1903.2,0.32128509]
[1746677461407,5.25254469,1903.9,1903.5,5.25337051]
[1746677461607,5.25205477,1904.1,1903.7,5.25283296]
[1746677461807,5.25205477,1904.1,1903.7,6.03413296]
[1746677462007,5.25020437,1904.7,1903.9,5.25232816]
[1746677462200,5.25100964,1904.4,1904.0,5.57331748]
[1746677462434,5.25124834,1904.4,1904.0,0.32136112]
[1746677462653,5.25026942,1904.7,1904.1,5.25171583]
[1746677462804,5.249895,1904.8,1904.2,0.7624]
[1746677463153,5.25092642,1904.5,1904.3,0.32136112]
[1746677463306,5.25055413,1904.6,1904.3,0.32136112]
[1746677463501,5.2500748,1904.8,1904.4,5.25096461]
[1746677463700,5.2501109,1904.8,1904.4,0.32136112]
[1746677464003,3.7834,1905.2,1904.5,0.8252]
[1746677464004,5.24978984,1904.9,1904.5,0.8252]
[1746677464241,0.7834,1905.2,1904.5,0.8252]
[1746677464242,5.24948392,1905.0,1904.6,0.32136112]
[1746677464603,5.24907291,1905.1,1904.6,5.57166329]
[1746677464725,9.43636244,1905.5,1904.7,5.24994909]
[1746677464726,5.24878268,1905.3,1904.7,5.24994909]
[1746677464909,6.02416019,1905.5,1904.7,0.05249532]
[1746677465114,5.24785284,1905.6,1905.0,5.2492225]
[1746677465315,5.24785284,1905.6,1905.1,5.24901915]
[1746677465516,5.24752926,1905.7,1905.2,5.24862616]
[1746677465726,5.24808628,1905.5,1905.2,0.32136112]
[1746677465947,5.24851729,1905.3,1905.2,0.32136112]
[1746677466323,5.24911451,1905.1,1904.8,0.7723]
[1746677466519,9.04836716,1905.5,1904.4,0.7534]
[1746677466733,5.25005987,1904.8,1904.4,0.7534]
[1746677466936,5.24985241,1904.9,1904.4,0.7534]
[1746677467152,5.2498015,1904.9,1904.4,0.7534]
[1746677467324,5.25011937,1904.8,1904.4,0.7534]
[1746677467524,5.25017338,1904.7,1904.4,0.7534]
[1746677467712,0.52501734,1904.7,1904.2,18.924]
[1746677468046,5.79961263,1905.0,1904.2,18.924]
[1746677468250,5.7996194,1904.9,1904.2,18.924]
[1746677468459,5.25061343,1904.6,1904.2,18.924]
[1746677468747,5.25034753,1904.7,1904.2,24.17538206]
[1746677469552,5.25034753,1904.7,1904.2,18.924]
[1746677469847,5.24994775,1904.8,1904.2,24.17551459]
[1746677470047,5.24994775,1904.8,1904.2,25.59291321]
[1746677470351,5.25020171,1904.7,1904.2,18.924]
[1746677470749,5.25020171,1904.7,1904.2,24.17550856]
[1746677470953,5.25020171,1904.7,1904.3,0.30046648]
[1746677471463,5.25067997,1904.6,1904.3,0.30046648]
[1746677471818,5.2502399,1904.7,1904.3,0.30046648]
[1746677472062,5.25029978,1904.7,1904.3,0.30046648]
[1746677472372,5.25062653,1904.6,1904.3,0.30046648]
[1746677472521,5.25085463,1904.5,1904.3,0.30046648]
[1746677472863,5.25099768,1904.4,1904.3,0.30046648]
[1746677473021,6.00360922,1906.6,1905.2,5.24879277]
[1746677473219,5.84564741,1906.5,1905.3,11.86374653]
[1746677473540,5.24576404,1906.3,1905.6,0.0405]
[1746677473724,5.24548887,1906.4,1905.6,0.0405]
[1746677473725,5.24672424,1906.0,1905.6,0.0405]
[1746677473929,5.84580763,1906.5,1905.6,0.92181333]
[1746677474161,5.24616522,1906.2,1905.7,0.29310319]
[1746677474317,5.24591389,1906.3,1905.7,5.54044764]
[1746677474518,5.24591389,1906.3,1905.7,5.24734445]
[1746677474718,5.24606702,1906.2,1905.8,0.29302732]
[1746677475229,5.24606702,1906.2,1905.9,0.29029649]
[1746677475436,5.84570757,1906.5,1906.0,5.24641514]
[1746677475621,5.83031506,1906.4,1906.1,0.29029649]
[1746677475816,0.8139,1907.1,1906.2,0.7833]
[1746677476162,0.8139,1907.1,1906.3,0.29022065]
[1746677476163,5.24512795,1906.6,1906.3,0.29022065]
[1746677476451,5.24383848,1907.0,1906.3,0.29022065]
[1746677476631,5.24509254,1906.6,1906.3,0.29022065]
[1746677476826,5.24533946,1906.5,1906.3,0.29022065]
[1746677477235,5.24476858,1906.7,1906.3,0.29022065]
[1746677477574,6.29370507,1906.7,1906.3,0.29022065]
[1746677478056,0.55,1906.6,1906.3,0.29022065]
[1746677478260,5.24548887,1906.4,1906.3,0.29022065]
[1746677478735,5.24548887,1906.4,1905.9,5.24671015]
[1746677478939,5.24548887,1906.4,1906.3,0.28210322]
[1746677479138,5.2458831,1906.3,1905.8,5.24698274]
[1746677479331,5.2458831,1906.3,1905.8,5.24691756]
[1746677479538,5.24554646,1906.4,1905.9,5.24686499]
[1746677480129,5.24554646,1906.4,1905.9,5.24666301]
[1746677480323,5.24537613,1906.5,1906.0,5.24655318]
[1746677480861,5.24562282,1906.4,1905.9,6.05679713]
[1746677481066,5.24582644,1906.3,1905.9,6.05679713]
[1746677481261,5.24559587,1906.4,1905.9,6.05679713]
[1746677481565,5.24579958,1906.3,1905.9,13.71271515]
[1746677481967,6.0576555,1907.1,1906.0,0.8072]
[1746677482166,5.24477263,1906.7,1906.3,5.24574244]
[1746677482365,6.05748063,1907.1,1906.0,0.8072]
[1746677482551,5.24450766,1906.8,1906.3,5.24557631]
[1746677482937,5.24470501,1906.7,1906.2,5.24588966]
[1746677483131,5.24483494,1906.7,1906.1,5.24607738]
[1746677483334,5.24455156,1906.8,1906.3,10.49119329]
[1746677483541,5.24462372,1906.8,1906.3,5.24555107]
[1746677483742,10.48927291,1906.8,1906.3,5.24555107]
[1746677483931,5.24462372,1906.8,1906.3,5.24555107]
[1746677484134,3.60574806,1907.0,1906.2,5.24593151]
[1746677484366,5.24484413,1906.7,1906.2,5.24593151]
[1746677484681,5.24576404,1906.3,1906.2,8.398]
[1746677484969,5.24532444,1906.5,1906.0,0.8072]
[1746677485271,5.24577729,1906.3,1906.0,9.2052]
[1746677485471,10.49180559,1906.3,1906.0,9.2052]
[1746677485631,5.24577729,1906.3,1906.0,9.2052]
[1746677485838,5.24577729,1906.3,1906.1,0.28164831]
[1746677486266,5.24586614,1906.3,1906.1,0.28164831]
[1746677486464,5.24603924,1906.2,1906.1,0.28164831]
[1746677487066,5.24592675,1906.3,1906.1,0.28164831]
[1746677487275,5.24562901,1906.4,1906.1,0.28164831]
[1746677487481,5.24585911,1906.3,1906.1,0.28164831]
[1746677488243,5.24603924,1906.2,1906.1,0.28164831]
[1746677488575,5.79607545,1906.2,1905.6,0.7767]
[1746677488779,6.59057545,1906.2,1906.1,0.2582919]
[1746677488974,0.7945,1906.2,1905.4,8.44847872]
[1746677489176,5.24637419,1906.1,1905.4,8.44847872]
[1746677489377,5.24637419,1906.1,1905.7,5.24737371]
[1746677489748,0.55,1906.3,1905.2,0.8324]
[1746677489950,5.24686499,1905.9,1905.3,8.396]
[1746677490179,5.24676904,1906.0,1905.3,8.44847936]
[1746677490382,5.24687204,1905.9,1905.5,5.24781381]
[1746677491051,5.24699906,1905.9,1905.6,0.2582919]
[1746677491251,5.24704539,1905.9,1905.6,0.2582919]
[1746677491594,5.24704539,1905.9,1905.4,8.24822428]
[1746677491595,5.24714751,1905.8,1905.4,8.24822428]
[1746677491891,5.24714751,1905.8,1905.7,0.2582919]
[1746677492051,5.24704301,1905.9,1905.3,8.396]
[1746677492250,5.2471403,1905.8,1905.7,0.2582919]
[1746677492497,5.24707525,1905.9,1905.3,9.61884]
[1746677492789,5.24742724,1905.7,1905.3,14.86732628]
[1746677493003,5.24742724,1905.7,1905.2,3.8324]
[1746677493004,5.24741564,1905.7,1905.2,0.8324]
[1746677493282,5.24808061,1905.5,1905.2,0.8324]
[1746677493848,5.24717919,1905.8,1905.2,3.88488439]
[1746677494068,5.24717919,1905.8,1905.3,5.24838259]
[1746677494275,5.24749088,1905.7,1905.3,5.24838259]
[1746677494473,5.24749088,1905.7,1905.2,10.30917976]
[1746677494683,5.24749088,1905.7,1905.2,10.36166166]
[1746677495077,5.24749088,1905.7,1905.3,5.24846314]
[1746677495288,5.24770123,1905.6,1905.2,10.36161522]